[Event "Titled Tuesday Blitz April 12 Early 2022"]
[White "Vusatiuk, Vladimir"]
[Black "Stanisz, Patryk"]
[WhiteFideId "14118610"]
[BlackFideId "1123106"]
[WhiteElo "2157"]
[BlackElo "1833"]
[Result "0-1"]
[Round "07"]
[TimeControl "180+1"]
[Date "2022.04.13"]
[WhiteClock "0:00:06"]
[BlackClock "0:00:13"]

1. d4 {[%clk 0:02:59]}  d5 {[%clk 0:02:59]} 2. c4 {[%clk 0:02:46]}  c6 {[%clk 0:02:58]} 3. e3 {[%clk 0:02:45]}  Nf6 {[%clk 0:02:58]} 4. Nc3 {[%clk 0:02:45]}  e6 {[%clk 0:02:57]} 5. Nf3 {[%clk 0:02:45]}  Nbd7 {[%clk 0:02:57]} 6. Be2 {[%clk 0:02:43]}  dxc4 {[%clk 0:02:55]} 7. a4 {[%clk 0:02:43]}  Bb4 {[%clk 0:02:52]} 8. O-O {[%clk 0:02:39]}  b5 {[%clk 0:02:49]} 9. Bd2 {[%clk 0:02:29]}  Bxc3 {[%clk 0:02:46]} 10. Bxc3 {[%clk 0:02:28]}  a6 {[%clk 0:02:47]} 11. b3 {[%clk 0:02:25]}  cxb3 {[%clk 0:02:46]} 12. axb5 {[%clk 0:02:21]}  cxb5 {[%clk 0:02:46]} 13. Bxb5 {[%clk 0:01:57]}  O-O {[%clk 0:02:45]} 14. Bc4 {[%clk 0:01:24]}  Bb7 {[%clk 0:02:40]} 15. Bxb3 {[%clk 0:01:22]}  Qb6 {[%clk 0:02:30]} 16. Ba4 {[%clk 0:01:07]}  Rfc8 {[%clk 0:02:24]} 17. Ba5 {[%clk 0:01:05]}  Qd6 {[%clk 0:02:11]} 18. Qe2 {[%clk 0:00:51]}  Bc6 {[%clk 0:02:03]} 19. Bxc6 {[%clk 0:00:42]}  Rxc6 {[%clk 0:01:58]} 20. Rfb1 {[%clk 0:00:34]}  h6 {[%clk 0:01:56]} 21. e4 {[%clk 0:00:30]}  Qf4 {[%clk 0:01:46]} 22. Re1 {[%clk 0:00:19]}  Rac8 {[%clk 0:01:45]} 23. Bd2 {[%clk 0:00:18]}  Qg4 {[%clk 0:01:37]} 24. h3 {[%clk 0:00:19]}  Qh5 {[%clk 0:01:37]} 25. Rxa6 {[%clk 0:00:14]}  Rc2 {[%clk 0:01:22]} 26. Ra5 {[%clk 0:00:12]}  Qg6 {[%clk 0:01:20]} 27. e5 {[%clk 0:00:07]}  Nd5 {[%clk 0:01:17]} 28. Qd1 {[%clk 0:00:06]}  N7b6 {[%clk 0:01:11]} 29. Ra1 {[%clk 0:00:05]}  Qd3 {[%clk 0:01:04]} 30. Rc1 {[%clk 0:00:04]}  R2c4 {[%clk 0:00:33]} 31. Rxc4 {[%clk 0:00:04]}  Nxc4 {[%clk 0:00:34]} 32. Be3 {[%clk 0:00:03]}  Qxd1 {[%clk 0:00:31]} 33. Rxd1 {[%clk 0:00:04]}  Ncxe3 {[%clk 0:00:32]} 34. fxe3 {[%clk 0:00:05]}  Nxe3 {[%clk 0:00:33]} 35. Rd3 {[%clk 0:00:06]}  Nf5 {[%clk 0:00:32]} 36. Kf2 {[%clk 0:00:06]}  g5 {[%clk 0:00:32]} 37. g4 {[%clk 0:00:06]}  Rc2+ {[%clk 0:00:30]} 38. Kg1 {[%clk 0:00:06]}  Ne7 {[%clk 0:00:29]} 39. Nd2 {[%clk 0:00:06]}  Nd5 {[%clk 0:00:29]} 40. Ne4 {[%clk 0:00:07]}  Nf4 {[%clk 0:00:28]} 41. Nf6+ {[%clk 0:00:07]}  Kg7 {[%clk 0:00:16]} 42. Rb3 {[%clk 0:00:08]}  Nxh3+ {[%clk 0:00:14]} 43. Rxh3 {[%clk 0:00:07]}  Rd2 {[%clk 0:00:10]} 44. Rc3 {[%clk 0:00:04]}  h5 {[%clk 0:00:10]} 45. Nxh5+ {[%clk 0:00:03]}  Kg6 {[%clk 0:00:09]} 46. Nf6 {[%clk 0:00:02]}  Rd1+ {[%clk 0:00:10]} 47. Kf2 {[%clk 0:00:02]}  Rxd4 {[%clk 0:00:10]} 48. Kf3 {[%clk 0:00:02]}  Rf4+ {[%clk 0:00:11]} 49. Ke3 {[%clk 0:00:03]}  Ra4 {[%clk 0:00:11]} 50. Rd3 {[%clk 0:00:03]}  Ra2 {[%clk 0:00:11]} 51. Rd8 {[%clk 0:00:03]}  Ra1 {[%clk 0:00:12]} 52. Ke4 {[%clk 0:00:04]}  Re1+ {[%clk 0:00:12]} 53. Kd4 {[%clk 0:00:04]}  Rd1+ {[%clk 0:00:12]} 54. Kc5 {[%clk 0:00:05]}  Rxd8 {[%clk 0:00:13]} 55. Kc6 {[%clk 0:00:05]}  Rd4 {[%clk 0:00:12]} 56. Kc5 {[%clk 0:00:05]}  Rf4 {[%clk 0:00:12]} 57. Kd6 {[%clk 0:00:05]}  Rxf6 {[%clk 0:00:12]} 58. exf6 {[%clk 0:00:06]}  Kxf6 {[%clk 0:00:13]} 0-1


[Site "https://www.chess.com"]

[Event "Titled Tuesday Blitz April 12 Early 2022"]
[White "Xiong, Jeffery"]
[Black "Zierk, Steven"]
[WhiteFideId "2047640"]
[BlackFideId "2034255"]
[WhiteElo "2727"]
[BlackElo "2494"]
[Result "1-0"]
[Round "07"]
[TimeControl "180+1"]
[Date "2022.04.12"]
[WhiteClock "0:00:11"]
[BlackClock "0:00:12"]

1. e4 {[%clk 0:03:00]}  e5 {[%clk 0:02:59]} 2. Nf3 {[%clk 0:03:00]}  Nc6 {[%clk 0:03:00]} 3. Nc3 {[%clk 0:03:01]}  Nf6 {[%clk 0:03:00]} 4. d4 {[%clk 0:03:02]}  exd4 {[%clk 0:03:00]} 5. Nxd4 {[%clk 0:03:03]}  Nxe4 {[%clk 0:03:01]} 6. Nxe4 {[%clk 0:03:01]}  Qe7 {[%clk 0:03:01]} 7. Bd3 {[%clk 0:03:01]}  Nxd4 {[%clk 0:03:01]} 8. O-O {[%clk 0:03:02]}  Ne6 {[%clk 0:03:01]} 9. Re1 {[%clk 0:02:57]}  d5 {[%clk 0:02:58]} 10. Ng3 {[%clk 0:02:57]}  g6 {[%clk 0:02:51]} 11. f4 {[%clk 0:02:57]}  f5 {[%clk 0:02:45]} 12. Nxf5 {[%clk 0:02:57]}  gxf5 {[%clk 0:02:45]} 13. Bxf5 {[%clk 0:02:58]}  Qc5+ {[%clk 0:02:07]} 14. Kh1 {[%clk 0:02:34]}  Be7 {[%clk 0:01:58]} 15. Qh5+ {[%clk 0:02:24]}  Kd8 {[%clk 0:01:57]} 16. Bxe6 {[%clk 0:02:25]}  c6 {[%clk 0:01:34]} 17. Be3 {[%clk 0:02:16]}  Qxc2 {[%clk 0:01:33]} 18. Bd4 {[%clk 0:02:11]}  Rf8 {[%clk 0:01:22]} 19. Bxc8 {[%clk 0:02:01]}  Rxc8 {[%clk 0:01:22]} 20. Qe5 {[%clk 0:01:12]}  Rc7 {[%clk 0:01:16]} 21. Bxa7 {[%clk 0:01:10]}  Kc8 {[%clk 0:01:09]} 22. Bb6 {[%clk 0:00:55]}  Rd7 {[%clk 0:01:08]} 23. Re2 {[%clk 0:00:42]}  Qg6 {[%clk 0:01:00]} 24. Qd4 {[%clk 0:00:39]}  Bd6 {[%clk 0:00:56]} 25. Rae1 {[%clk 0:00:38]}  Bc7 {[%clk 0:00:38]} 26. Qa4 {[%clk 0:00:31]}  Bb8 {[%clk 0:00:11]} 27. Qa8 {[%clk 0:00:31]}  h5 {[%clk 0:00:08]} 28. Ba7 {[%clk 0:00:30]}  Qd6 {[%clk 0:00:08]} 29. Re8+ {[%clk 0:00:18]}  Rd8 {[%clk 0:00:07]} 30. Bxb8 {[%clk 0:00:10]}  Qxb8 {[%clk 0:00:06]} 31. Qxb8+ {[%clk 0:00:11]}  Kxb8 {[%clk 0:00:07]} 32. Rxd8+ {[%clk 0:00:11]}  Rxd8 {[%clk 0:00:08]} 33. Kg1 {[%clk 0:00:12]}  Kc7 {[%clk 0:00:07]} 34. Kf2 {[%clk 0:00:12]}  Kd6 {[%clk 0:00:07]} 35. Kf3 {[%clk 0:00:13]}  Ra8 {[%clk 0:00:08]} 36. a3 {[%clk 0:00:12]}  c5 {[%clk 0:00:08]} 37. h3 {[%clk 0:00:12]}  c4 {[%clk 0:00:09]} 38. g4 {[%clk 0:00:12]}  hxg4+ {[%clk 0:00:09]} 39. hxg4 {[%clk 0:00:13]}  b5 {[%clk 0:00:10]} 40. f5 {[%clk 0:00:13]}  b4 {[%clk 0:00:10]} 41. axb4 {[%clk 0:00:13]}  Rb8 {[%clk 0:00:10]} 42. Re6+ {[%clk 0:00:13]}  Kd7 {[%clk 0:00:10]} 43. Re2 {[%clk 0:00:13]}  Rxb4 {[%clk 0:00:10]} 44. f6 {[%clk 0:00:14]}  Rb6 {[%clk 0:00:10]} 45. g5 {[%clk 0:00:14]}  d4 {[%clk 0:00:10]} 46. f7 {[%clk 0:00:14]}  Rb8 {[%clk 0:00:11]} 47. g6 {[%clk 0:00:14]}  d3 {[%clk 0:00:12]} 48. Re4 {[%clk 0:00:12]}  d2 {[%clk 0:00:12]} 49. Ke2 {[%clk 0:00:11]} 1-0


[Site "https://www.chess.com"]

[Event "Titled Tuesday Blitz April 12 Early 2022"]
[White "Xu, Yi"]
[Black "Tasev, Dejan"]
[WhiteFideId "8605564"]
[BlackFideId "936618"]
[WhiteElo "2471"]
[BlackElo "2253"]
[Result "1-0"]
[Round "07"]
[TimeControl "180+1"]
[Date "2022.04.12"]
[WhiteClock "0:00:24"]
[BlackClock "0:00:23"]

1. e4 {[%clk 0:03:00]}  e5 {[%clk 0:02:59]} 2. Nf3 {[%clk 0:03:00]}  Nf6 {[%clk 0:02:59]} 3. d4 {[%clk 0:02:58]}  exd4 {[%clk 0:02:59]} 4. e5 {[%clk 0:02:56]}  Ne4 {[%clk 0:02:56]} 5. Qxd4 {[%clk 0:02:55]}  d5 {[%clk 0:02:56]} 6. exd6 {[%clk 0:02:54]}  Nxd6 {[%clk 0:02:56]} 7. Nc3 {[%clk 0:02:53]}  Nc6 {[%clk 0:02:55]} 8. Qf4 {[%clk 0:02:53]}  Be7 {[%clk 0:02:55]} 9. Bd3 {[%clk 0:02:45]}  O-O {[%clk 0:02:54]} 10. Bd2 {[%clk 0:02:42]}  Bf6 {[%clk 0:02:53]} 11. O-O-O {[%clk 0:02:41]}  Be6 {[%clk 0:02:52]} 12. h4 {[%clk 0:02:35]}  Re8 {[%clk 0:02:38]} 13. Ng5 {[%clk 0:02:26]}  h6 {[%clk 0:02:25]} 14. Nxe6 {[%clk 0:02:25]}  Rxe6 {[%clk 0:02:18]} 15. Nd5 {[%clk 0:02:07]}  Be5 {[%clk 0:02:08]} 16. Qg4 {[%clk 0:02:07]}  Ne7 {[%clk 0:01:55]} 17. Ne3 {[%clk 0:01:50]}  Ng6 {[%clk 0:01:43]} 18. c3 {[%clk 0:01:38]}  Nf4 {[%clk 0:01:37]} 19. Bc2 {[%clk 0:01:35]}  h5 {[%clk 0:01:21]} 20. Qf3 {[%clk 0:01:28]}  Rf6 {[%clk 0:01:21]} 21. Nd5 {[%clk 0:01:22]}  Nxd5 {[%clk 0:01:16]} 22. Qxd5 {[%clk 0:01:22]}  Bf4 {[%clk 0:01:10]} 23. Qxh5 {[%clk 0:01:14]}  Rh6 {[%clk 0:00:59]} 24. Qf3 {[%clk 0:01:14]}  Bxd2+ {[%clk 0:00:58]} 25. Rxd2 {[%clk 0:01:15]}  Qf6 {[%clk 0:00:56]} 26. Qxf6 {[%clk 0:01:12]}  Rxf6 {[%clk 0:00:57]} 27. Re2 {[%clk 0:01:08]}  Kf8 {[%clk 0:00:54]} 28. Rhe1 {[%clk 0:01:01]}  Re8 {[%clk 0:00:51]} 29. Rxe8+ {[%clk 0:00:59]}  Nxe8 {[%clk 0:00:52]} 30. Re2 {[%clk 0:00:56]}  Nd6 {[%clk 0:00:52]} 31. g3 {[%clk 0:00:55]}  Re6 {[%clk 0:00:47]} 32. Rxe6 {[%clk 0:00:54]}  fxe6 {[%clk 0:00:48]} 33. Bd3 {[%clk 0:00:53]}  Ke7 {[%clk 0:00:48]} 34. Kd2 {[%clk 0:00:52]}  Kf6 {[%clk 0:00:48]} 35. Ke3 {[%clk 0:00:52]}  e5 {[%clk 0:00:49]} 36. f4 {[%clk 0:00:50]}  exf4+ {[%clk 0:00:48]} 37. Kxf4 {[%clk 0:00:50]}  Nf7 {[%clk 0:00:43]} 38. Be4 {[%clk 0:00:50]}  b6 {[%clk 0:00:42]} 39. Bd3 {[%clk 0:00:47]}  g5+ {[%clk 0:00:41]} 40. hxg5+ {[%clk 0:00:47]}  Nxg5 {[%clk 0:00:41]} 41. Bf5 {[%clk 0:00:43]}  Nf7 {[%clk 0:00:38]} 42. g4 {[%clk 0:00:42]}  a5 {[%clk 0:00:38]} 43. Ke4 {[%clk 0:00:40]}  Ke7 {[%clk 0:00:36]} 44. Kd5 {[%clk 0:00:39]}  Kd8 {[%clk 0:00:36]} 45. c4 {[%clk 0:00:36]}  Ng5 {[%clk 0:00:33]} 46. c5 {[%clk 0:00:34]}  bxc5 {[%clk 0:00:23]} 47. Kxc5 {[%clk 0:00:34]}  Ke7 {[%clk 0:00:22]} 48. Kb5 {[%clk 0:00:34]}  Kd6 {[%clk 0:00:22]} 49. Kxa5 {[%clk 0:00:31]}  Kc6 {[%clk 0:00:23]} 50. Kb4 {[%clk 0:00:26]}  Kb6 {[%clk 0:00:23]} 51. Kc4 {[%clk 0:00:24]}  c6 {[%clk 0:00:23]} 52. Kd4 {[%clk 0:00:24]}  Kc7 {[%clk 0:00:23]} 53. Ke5 {[%clk 0:00:24]}  Kd8 {[%clk 0:00:23]} 54. Kf6 {[%clk 0:00:24]}  Ne4+ {[%clk 0:00:23]} 55. Bxe4 {[%clk 0:00:24]} 1-0


[Site "https://www.chess.com"]

[Event "Titled Tuesday Blitz April 12 Early 2022"]
[White "Yang, Kaiqi"]
[Black "Zia, Tahsin Tajwar"]
[WhiteFideId "8604398"]
[BlackFideId "10211888"]
[WhiteElo "2373"]
[BlackElo "1800"]
[Result "0-1"]
[Round "07"]
[TimeControl "180+1"]
[Date "2022.04.13"]
[WhiteClock "0:00:04"]
[BlackClock "0:01:14"]

1. c4 {[%clk 0:02:52]}  Nf6 {[%clk 0:02:59]} 2. Nc3 {[%clk 0:02:51]}  e6 {[%clk 0:02:59]} 3. d4 {[%clk 0:02:49]}  d5 {[%clk 0:02:59]} 4. cxd5 {[%clk 0:02:48]}  exd5 {[%clk 0:02:59]} 5. Bg5 {[%clk 0:02:48]}  c6 {[%clk 0:03:00]} 6. e3 {[%clk 0:02:49]}  h6 {[%clk 0:02:59]} 7. Bh4 {[%clk 0:02:49]}  Be7 {[%clk 0:02:59]} 8. Bd3 {[%clk 0:02:48]}  O-O {[%clk 0:02:59]} 9. Nge2 {[%clk 0:02:47]}  Re8 {[%clk 0:03:00]} 10. Qc2 {[%clk 0:02:47]}  a5 {[%clk 0:02:59]} 11. f3 {[%clk 0:02:46]}  Na6 {[%clk 0:02:58]} 12. a3 {[%clk 0:02:46]}  b5 {[%clk 0:02:58]} 13. O-O {[%clk 0:02:42]}  b4 {[%clk 0:02:46]} 14. Na4 {[%clk 0:02:42]}  c5 {[%clk 0:02:18]} 15. dxc5 {[%clk 0:02:26]}  Nd7 {[%clk 0:02:17]} 16. Bxe7 {[%clk 0:02:04]}  Qxe7 {[%clk 0:02:17]} 17. c6 {[%clk 0:01:57]}  Qxe3+ {[%clk 0:02:16]} 18. Kh1 {[%clk 0:01:48]}  Ndc5 {[%clk 0:02:14]} 19. Nxc5 {[%clk 0:01:17]}  Nxc5 {[%clk 0:02:13]} 20. Bh7+ {[%clk 0:01:01]}  Kh8 {[%clk 0:02:13]} 21. axb4 {[%clk 0:00:49]}  Nb3 {[%clk 0:01:43]} 22. Rae1 {[%clk 0:00:29]}  Nd4 {[%clk 0:01:36]} 23. Nxd4 {[%clk 0:00:18]}  Qxe1 {[%clk 0:01:37]} 24. Rg1 {[%clk 0:00:18]}  Qxb4 {[%clk 0:01:26]} 25. Qd3 {[%clk 0:00:16]}  Ba6 {[%clk 0:01:23]} 26. Qf5 {[%clk 0:00:09]}  Qxd4 {[%clk 0:01:22]} 27. h3 {[%clk 0:00:08]}  Qe5 {[%clk 0:01:20]} 28. Qc2 {[%clk 0:00:07]}  d4 {[%clk 0:01:19]} 29. c7 {[%clk 0:00:07]}  Rac8 {[%clk 0:01:18]} 30. Bf5 {[%clk 0:00:07]}  Rxc7 {[%clk 0:01:18]} 31. Qb1 {[%clk 0:00:06]}  g6 {[%clk 0:01:16]} 32. Bd3 {[%clk 0:00:04]}  Bxd3 {[%clk 0:01:15]} 33. Qxd3 {[%clk 0:00:04]}  Qe3 {[%clk 0:01:16]} 34. Qb5 {[%clk 0:00:04]}  d3 {[%clk 0:01:15]} 35. Rd1 {[%clk 0:00:03]}  Rc1 {[%clk 0:01:13]} 36. Rxc1 {[%clk 0:00:02]}  Qxc1+ {[%clk 0:01:13]} 37. Kh2 {[%clk 0:00:03]}  Qf4+ {[%clk 0:01:14]} 38. Kg1 {[%clk 0:00:04]}  Re1+ {[%clk 0:01:14]} 0-1


[Site "https://www.chess.com"]

[Event "Titled Tuesday Blitz April 12 Early 2022"]
[White "Yurovskykh, Oleksandr"]
[Black "Chernomordik, Pavel"]
[WhiteFideId "14134020"]
[BlackFideId "2804530"]
[WhiteElo "2292"]
[BlackElo "2220"]
[Result "1-0"]
[Round "07"]
[TimeControl "180+1"]
[Date "2022.04.13"]
[WhiteClock "0:00:03"]
[BlackClock "0:00:01"]

1. d4 {[%clk 0:02:49]}  g6 {[%clk 0:02:57]} 2. e4 {[%clk 0:02:48]}  Bg7 {[%clk 0:02:57]} 3. Nf3 {[%clk 0:02:48]}  d6 {[%clk 0:02:56]} 4. Nbd2 {[%clk 0:02:48]}  c5 {[%clk 0:02:51]} 5. c3 {[%clk 0:02:37]}  Qc7 {[%clk 0:02:50]} 6. Be2 {[%clk 0:02:32]}  Nc6 {[%clk 0:02:49]} 7. d5 {[%clk 0:02:32]}  Nb8 {[%clk 0:02:48]} 8. h3 {[%clk 0:02:26]}  Nf6 {[%clk 0:02:47]} 9. O-O {[%clk 0:02:25]}  O-O {[%clk 0:02:46]} 10. Re1 {[%clk 0:02:23]}  e5 {[%clk 0:02:43]} 11. dxe6 {[%clk 0:02:11]}  Bxe6 {[%clk 0:02:36]} 12. Bc4 {[%clk 0:02:10]}  Nc6 {[%clk 0:02:31]} 13. Bxe6 {[%clk 0:02:08]}  fxe6 {[%clk 0:02:30]} 14. e5 {[%clk 0:02:08]}  dxe5 {[%clk 0:02:25]} 15. Ne4 {[%clk 0:02:07]}  b6 {[%clk 0:02:10]} 16. Qe2 {[%clk 0:02:03]}  Nh5 {[%clk 0:02:01]} 17. g3 {[%clk 0:02:01]}  h6 {[%clk 0:01:56]} 18. Nh4 {[%clk 0:01:56]}  Qf7 {[%clk 0:01:45]} 19. Qg4 {[%clk 0:01:48]}  g5 {[%clk 0:01:30]} 20. Ng2 {[%clk 0:01:42]}  Rad8 {[%clk 0:01:24]} 21. Be3 {[%clk 0:01:40]}  Ne7 {[%clk 0:01:20]} 22. Rad1 {[%clk 0:01:35]}  Nd5 {[%clk 0:01:15]} 23. c4 {[%clk 0:01:27]}  Ndf6 {[%clk 0:01:11]} 24. Nxf6+ {[%clk 0:01:23]}  Nxf6 {[%clk 0:01:10]} 25. Qe2 {[%clk 0:01:18]}  e4 {[%clk 0:01:07]} 26. Rxd8 {[%clk 0:01:08]}  Rxd8 {[%clk 0:01:07]} 27. Rd1 {[%clk 0:01:08]}  Rxd1+ {[%clk 0:00:59]} 28. Qxd1 {[%clk 0:01:08]}  Qd7 {[%clk 0:01:00]} 29. Qxd7 {[%clk 0:00:47]}  Nxd7 {[%clk 0:00:58]} 30. b3 {[%clk 0:00:47]}  Ne5 {[%clk 0:00:57]} 31. Kf1 {[%clk 0:00:47]}  Nd3 {[%clk 0:00:53]} 32. Bd2 {[%clk 0:00:46]}  Kf7 {[%clk 0:00:50]} 33. Ke2 {[%clk 0:00:46]}  Ne5 {[%clk 0:00:45]} 34. Ne1 {[%clk 0:00:29]}  Nc6 {[%clk 0:00:40]} 35. Ke3 {[%clk 0:00:29]}  Bd4+ {[%clk 0:00:35]} 36. Ke2 {[%clk 0:00:29]}  Kf6 {[%clk 0:00:32]} 37. Nc2 {[%clk 0:00:28]}  Ke5 {[%clk 0:00:32]} 38. a3 {[%clk 0:00:25]}  a5 {[%clk 0:00:30]} 39. a4 {[%clk 0:00:22]}  Bb2 {[%clk 0:00:28]} 40. Ne3 {[%clk 0:00:05]}  Nd4+ {[%clk 0:00:27]} 41. Kd1 {[%clk 0:00:05]}  h5 {[%clk 0:00:22]} 42. g4 {[%clk 0:00:06]}  h4 {[%clk 0:00:19]} 43. Ng2 {[%clk 0:00:06]}  Nf3 {[%clk 0:00:18]} 44. Ne1 {[%clk 0:00:06]}  Nxd2 {[%clk 0:00:16]} 45. Kxd2 {[%clk 0:00:07]}  Ba3 {[%clk 0:00:15]} 46. Nc2 {[%clk 0:00:06]}  Bb2 {[%clk 0:00:15]} 47. Ke2 {[%clk 0:00:05]}  Kf4 {[%clk 0:00:14]} 48. Ne1 {[%clk 0:00:05]}  Bd4 {[%clk 0:00:12]} 49. Ng2+ {[%clk 0:00:05]}  Ke5 {[%clk 0:00:11]} 50. Ne1 {[%clk 0:00:06]}  Bc3 {[%clk 0:00:11]} 51. Ng2 {[%clk 0:00:06]}  Kd4 {[%clk 0:00:10]} 52. Ne3 {[%clk 0:00:07]}  Bb4 {[%clk 0:00:09]} 53. Nd1 {[%clk 0:00:06]}  e5 {[%clk 0:00:08]} 54. f3 {[%clk 0:00:01]}  exf3+ {[%clk 0:00:07]} 55. Kxf3 {[%clk 0:00:02]}  e4+ {[%clk 0:00:07]} 56. Ke2 {[%clk 0:00:03]}  Ba3 {[%clk 0:00:05]} 57. Ne3 {[%clk 0:00:03]}  Bc1 {[%clk 0:00:04]} 58. Nd5 {[%clk 0:00:03]}  Bf4 {[%clk 0:00:02]} 59. Nxb6 {[%clk 0:00:03]}  Kc3 {[%clk 0:00:02]} 60. Nd7 {[%clk 0:00:04]}  Kb4 {[%clk 0:00:01]} 61. Nf6 {[%clk 0:00:03]} 1-0


[Site "https://www.chess.com"]

[Event "Titled Tuesday Blitz April 12 Early 2022"]
[White "Zavgorodniy, Sergiy"]
[Black "Kobalia, Mikhail"]
[WhiteFideId "14110148"]
[BlackFideId "4119150"]
[WhiteElo "2420"]
[BlackElo "2667"]
[Result "0-1"]
[Round "07"]
[TimeControl "180+1"]
[Date "2022.04.12"]
[WhiteClock "0:00:05"]
[BlackClock "0:00:57"]

1. e4 {[%clk 0:03:00]}  c5 {[%clk 0:02:59]} 2. Nf3 {[%clk 0:03:00]}  e6 {[%clk 0:02:59]} 3. d3 {[%clk 0:02:59]}  Nc6 {[%clk 0:02:59]} 4. g3 {[%clk 0:02:59]}  g6 {[%clk 0:02:59]} 5. Bg5 {[%clk 0:02:54]}  Qb6 {[%clk 0:02:58]} 6. Nbd2 {[%clk 0:02:53]}  d5 {[%clk 0:02:43]} 7. exd5 {[%clk 0:02:47]}  exd5 {[%clk 0:02:43]} 8. Bg2 {[%clk 0:02:46]}  Be7 {[%clk 0:02:42]} 9. Bxe7 {[%clk 0:02:45]}  Ngxe7 {[%clk 0:02:42]} 10. b3 {[%clk 0:02:34]}  O-O {[%clk 0:02:41]} 11. O-O {[%clk 0:02:33]}  Qc7 {[%clk 0:02:40]} 12. Re1 {[%clk 0:02:30]}  Bf5 {[%clk 0:02:39]} 13. Nh4 {[%clk 0:02:15]}  Be6 {[%clk 0:02:38]} 14. Ndf3 {[%clk 0:02:15]}  h6 {[%clk 0:02:31]} 15. Qd2 {[%clk 0:02:11]}  Kg7 {[%clk 0:02:30]} 16. Qc3+ {[%clk 0:01:51]}  Kh7 {[%clk 0:02:19]} 17. Qxc5 {[%clk 0:01:01]}  g5 {[%clk 0:02:19]} 18. c4 {[%clk 0:00:59]}  gxh4 {[%clk 0:02:14]} 19. Nxh4 {[%clk 0:01:00]}  dxc4 {[%clk 0:02:11]} 20. dxc4 {[%clk 0:00:51]}  Rad8 {[%clk 0:02:09]} 21. Qh5 {[%clk 0:00:45]}  Qa5 {[%clk 0:01:45]} 22. Qf3 {[%clk 0:00:25]}  Qd2 {[%clk 0:01:39]} 23. h3 {[%clk 0:00:22]}  Qg5 {[%clk 0:01:38]} 24. Qe4+ {[%clk 0:00:20]}  Kh8 {[%clk 0:01:35]} 25. Nf3 {[%clk 0:00:20]}  Qf6 {[%clk 0:01:34]} 26. Qc2 {[%clk 0:00:15]}  Bxh3 {[%clk 0:01:29]} 27. Bxh3 {[%clk 0:00:14]}  Qxf3 {[%clk 0:01:28]} 28. Re3 {[%clk 0:00:14]}  Qh5 {[%clk 0:01:25]} 29. Bg2 {[%clk 0:00:12]}  Nf5 {[%clk 0:01:23]} 30. Re4 {[%clk 0:00:11]}  Nfd4 {[%clk 0:01:19]} 31. Qb2 {[%clk 0:00:09]}  Kg8 {[%clk 0:01:14]} 32. Rae1 {[%clk 0:00:09]}  Nf3+ {[%clk 0:01:11]} 33. Bxf3 {[%clk 0:00:07]}  Qxf3 {[%clk 0:01:12]} 34. Rf4 {[%clk 0:00:06]}  Qh5 {[%clk 0:01:07]} 35. Rh4 {[%clk 0:00:05]}  Qg6 {[%clk 0:01:03]} 36. Ree4 {[%clk 0:00:05]}  f5 {[%clk 0:00:57]} 0-1


[Site "https://www.chess.com"]

[Event "Titled Tuesday Blitz April 12 Early 2022"]
[White "Zhu, Jiner"]
[Black "Bychkov, Vladimir"]
[WhiteFideId "8608059"]
[BlackFideId "24151513"]
[WhiteElo "2721"]
[BlackElo "2356"]
[Result "1-0"]
[Round "07"]
[TimeControl "180+1"]
[Date "2022.04.13"]
[WhiteClock "0:00:03"]
[BlackClock "0:00:01"]

1. e4 {[%clk 0:03:00]}  e6 {[%clk 0:02:58]} 2. d4 {[%clk 0:03:00]}  d5 {[%clk 0:02:59]} 3. exd5 {[%clk 0:03:00]}  exd5 {[%clk 0:02:59]} 4. Nf3 {[%clk 0:03:01]}  Bd6 {[%clk 0:03:00]} 5. Bd3 {[%clk 0:03:01]}  Ne7 {[%clk 0:02:59]} 6. O-O {[%clk 0:02:59]}  O-O {[%clk 0:02:59]} 7. Re1 {[%clk 0:02:58]}  Bf5 {[%clk 0:02:58]} 8. Ne5 {[%clk 0:02:41]}  Bxd3 {[%clk 0:02:56]} 9. Qxd3 {[%clk 0:02:39]}  f6 {[%clk 0:02:55]} 10. Nf3 {[%clk 0:02:37]}  Ng6 {[%clk 0:02:52]} 11. Nc3 {[%clk 0:02:34]}  c6 {[%clk 0:02:51]} 12. Ne2 {[%clk 0:02:34]}  Qc7 {[%clk 0:02:49]} 13. Ng3 {[%clk 0:02:30]}  Nd7 {[%clk 0:02:43]} 14. Nf5 {[%clk 0:02:30]}  Rae8 {[%clk 0:02:43]} 15. Bd2 {[%clk 0:02:29]}  Bf4 {[%clk 0:02:41]} 16. g3 {[%clk 0:02:19]}  Bxd2 {[%clk 0:02:40]} 17. Qxd2 {[%clk 0:02:20]}  Nb6 {[%clk 0:02:28]} 18. b3 {[%clk 0:02:14]}  Qd7 {[%clk 0:02:25]} 19. Qd3 {[%clk 0:02:11]}  Nc8 {[%clk 0:02:24]} 20. h4 {[%clk 0:02:06]}  Nd6 {[%clk 0:02:24]} 21. Nxd6 {[%clk 0:02:06]}  Qxd6 {[%clk 0:02:25]} 22. h5 {[%clk 0:02:06]}  Ne7 {[%clk 0:02:23]} 23. Re2 {[%clk 0:02:01]}  Nc8 {[%clk 0:02:14]} 24. Rae1 {[%clk 0:02:00]}  Qd7 {[%clk 0:02:12]} 25. Nh4 {[%clk 0:01:57]}  Nd6 {[%clk 0:02:11]} 26. Kg2 {[%clk 0:01:42]}  Re4 {[%clk 0:01:58]} 27. f3 {[%clk 0:01:37]}  Rxe2+ {[%clk 0:01:51]} 28. Rxe2 {[%clk 0:01:34]}  Re8 {[%clk 0:01:51]} 29. Kf2 {[%clk 0:01:27]}  Rxe2+ {[%clk 0:01:49]} 30. Qxe2 {[%clk 0:01:27]}  Qe8 {[%clk 0:01:46]} 31. Qxe8+ {[%clk 0:01:26]}  Nxe8 {[%clk 0:01:47]} 32. Nf5 {[%clk 0:01:26]}  Kf7 {[%clk 0:01:42]} 33. g4 {[%clk 0:01:17]}  g6 {[%clk 0:01:41]} 34. hxg6+ {[%clk 0:01:17]}  hxg6 {[%clk 0:01:42]} 35. Ng3 {[%clk 0:01:17]}  Nd6 {[%clk 0:01:42]} 36. Ke3 {[%clk 0:01:17]}  Nb5 {[%clk 0:01:36]} 37. a4 {[%clk 0:01:15]}  Nd6 {[%clk 0:01:29]} 38. Ne2 {[%clk 0:01:13]}  g5 {[%clk 0:01:26]} 39. Ng3 {[%clk 0:01:12]}  Ke6 {[%clk 0:01:27]} 40. f4 {[%clk 0:01:05]}  gxf4+ {[%clk 0:01:23]} 41. Kxf4 {[%clk 0:01:06]}  a5 {[%clk 0:01:21]} 42. Kf3 {[%clk 0:00:33]}  b5 {[%clk 0:01:13]} 43. Ne2 {[%clk 0:00:29]}  bxa4 {[%clk 0:01:13]} 44. bxa4 {[%clk 0:00:29]}  Nc4 {[%clk 0:01:14]} 45. Nc1 {[%clk 0:00:24]}  Na3 {[%clk 0:00:55]} 46. c3 {[%clk 0:00:18]}  Nb1 {[%clk 0:00:31]} 47. Nb3 {[%clk 0:00:18]}  Nxc3 {[%clk 0:00:31]} 48. Nxa5 {[%clk 0:00:18]}  Kd7 {[%clk 0:00:19]} 49. Kf4 {[%clk 0:00:14]}  Nxa4 {[%clk 0:00:19]} 50. Kf5 {[%clk 0:00:14]}  c5 {[%clk 0:00:18]} 51. dxc5 {[%clk 0:00:11]}  Nxc5 {[%clk 0:00:16]} 52. Kxf6 {[%clk 0:00:11]}  d4 {[%clk 0:00:15]} 53. Nc4 {[%clk 0:00:09]}  d3 {[%clk 0:00:12]} 54. Kf7 {[%clk 0:00:05]}  Ne4 {[%clk 0:00:05]} 55. Ne5+ {[%clk 0:00:05]}  Kd6 {[%clk 0:00:05]} 56. Nxd3 {[%clk 0:00:06]}  Ng5+ {[%clk 0:00:02]} 57. Kf6 {[%clk 0:00:05]}  Nf3 {[%clk 0:00:02]} 58. Nf4 {[%clk 0:00:04]}  Kd7 {[%clk 0:00:02]} 59. Ne6 {[%clk 0:00:03]}  Ke8 {[%clk 0:00:02]} 60. Ng5 {[%clk 0:00:03]}  Nh4 {[%clk 0:00:01]} 61. Nh7 {[%clk 0:00:03]} 1-0


[Site "https://www.chess.com"]